[Event "2nd Cambridge Open 2024"]
[Site "Cambridge"]
[Date "2024.02.21"]
[Round "4.36"]
[White "Abhyuday, Santhosh"]
[Black "Wheatley, Wilfred"]
[Result "1-0"]
[ECO "B01"]
[WhiteElo "2058"]
[BlackElo "1864"]
[Annotator "NA"]
[PlyCount "91"]
[EventDate "2024.02.18"]
[EventType "swiss"]
[EventCountry "ENG"]
[SourceTitle "playchess.com"]
[Source "ChessBase"]
[SourceQuality "1"]
[TimeControl "5400+30"]

1. e4 {[%emt 0:08:06]} d5 {[%emt 0:00:52]} 2. exd5 {[%emt 0:00:26]} Qxd5 {[%emt 0:00:06]} 3. Nc3 {[%emt 0:00:07]} Qd8 {[%emt 0:00:05]} 4. d4 {[%emt 0:00:12]} Nf6 {[%emt 0:00:08]} 5. Nf3 {[%emt 0:00:13]} Bg4 {[%emt 0:01:24]} 6. h3 {[%emt 0:02:14]} Bxf3 {[%emt 0:02:28] B01: Scandinavian Defence.} 7. Qxf3 {[%emt 0:00:34]} c6 {[%emt 0:00:36]} 8. g4 {[%emt 0:00:42]} Qxd4 {[%emt 0:03:13]} 9. Be3 {[%emt 0:00:20]} Qb4 {[%emt 0:11:07]} 10. O-O-O {[%emt 0:00:19]} e6 {[%emt 0:01:38]} 11. Bd4 {[%emt 0:00:12]} Nbd7 {[%emt 0:03:22]} 12. g5 {[%emt 0:00:09]} Nd5 {[%emt 0:02:18]} 13. Nxd5 {[%emt 0:00:08]} cxd5 {[%emt 0:00:27]} 14. a3 {[%emt 0:00:21]} Qa4 {[%emt 0:09:20]} 15. Rg1 {[%emt 0:00:19]} Bd6 {[%emt 0:06:25]} 16. Rg4 {[%emt 0:01:14]} Be5 {[%emt 0:08:22]} 17. Bxe5 {[%emt 0:06:50]} Nxe5 {[%emt 0:00:24] [#]} 18. Qxd5 $1 {[%emt 0:00:40]} ({Much worse is} 18. Qxf7+ $6 Nxf7 19. Rxa4 Nxg5 $14) 18... exd5 {[%emt 0:03:20]} ({Don't blunder} 18... Qxc2+ $2 19. Kxc2 exd5 20. Re1 $18) 19. Rxa4 {[%emt 0:00:05]} O-O-O {[%emt 0:06:58]} 20. Rxa7 $18 {[%emt 0:02:43]} Nc6 {[%emt 0:03:09]} 21. Ra4 {[%emt 0:00:39]} h6 {[%emt 0:05:54]} 22. gxh6 {[%emt 0:06:20]} Rxh6 {[%emt 0:03:55]} 23. Bg2 {[%emt 0:08:10]} Kc7 {[%emt 0:07:03]} 24. Rg4 {[%emt 0:04:32]} g6 {[%emt 0:01:11]} 25. Bxd5 {[%emt 0:06:05]} Rxh3 {[%emt 0:03:49]} 26. Bxf7 {[%emt 0:05:39]} Rxd1+ {[%emt 0:04:42]} 27. Kxd1 {[%emt 0:00:05]} Rf3 {[%emt 0:00:37]} 28. Bxg6 {[%emt 0:00:12]} Rxf2 {[%emt 0:00:19]} 29. Be4 {[%emt 0:00:34]} Rf7 {[%emt 0:11:48]} 30. Bxc6 {[%emt 0:00:18]} bxc6 {[%emt 0:00:00]} 31. b3 {[%emt 0:00:18]} Rf2 {[%emt 0:00:00]} 32. Kc1 {[%emt 0:00:12]} Kb6 {[%emt 0:00:00]} 33. Kb2 {[%emt 0:00:11]} Rf3 {[%emt 0:00:00]} 34. b4 {[%emt 0:00:29]} Rh3 {[%emt 0:00:00]} 35. c3 {[%emt 0:00:09]} Rf3 {[%emt 0:00:00]} 36. Kb3 {[%emt 0:00:06]} Rh3 {[%emt 0:00:00]} 37. Kc4 {[%emt 0:01:13]} Rh1 {[%emt 0:00:00]} 38. a4 {[%emt 0:01:19]} Rh6 {[%emt 0:00:00]} 39. a5+ {[%emt 0:04:37]} Kc7 {[%emt 0:05:00]} 40. Rg7+ {[%emt 0:01:08]} Kd6 {[%emt 0:00:00]} 41. a6 {[%emt 0:00:55]} Rh1 {[%emt 0:00:00]} 42. a7 {[%emt 0:01:35]} Ra1 {[%emt 0:00:00]} 43. Rg6+ {[%emt 0:00:10]} Kc7 {[%emt 0:00:00]} 44. Kc5 {[%emt 0:00:08]} Kb7 {[%emt 0:00:00]} 45. Rg7+ {[%emt 0:00:08]} Ka8 {[%emt 0:00:00]} 46. Kb6 {[%emt 0:00:11]} 1-0

[Event "2nd Cambridge Open 2024"]
[Site "Cambridge"]
[Date "2024.02.21"]
[Round "4.37"]
[White "Crocker, Philip J"]
[Black "McMahon, Paul"]
[Result "1/2-1/2"]
[ECO "A29"]
[WhiteElo "2137"]
[BlackElo "1862"]
[Annotator "RC"]
[PlyCount "84"]
[EventDate "2024.02.18"]
[EventType "swiss"]
[EventCountry "ENG"]
[SourceTitle "playchess.com"]
[Source "ChessBase"]
[SourceQuality "1"]
[TimeControl "5400+30"]

1. c4 {[%emt 0:00:31]} Nf6 {[%emt 0:00:30]} 2. g3 {[%emt 0:00:30]} g6 {[%emt 0:00:30]} 3. Bg2 {[%emt 0:00:30]} Bg7 {[%emt 0:00:30]} 4. Nc3 {[%emt 0:00:30]} e5 {[%emt 0:00:30]} 5. Nf3 {[%emt 0:00:30]} Nc6 {[%emt 0:00:00]} 6. O-O {[%emt 0:00:00]} O-O {[%emt 0:00:28]} 7. d4 {[%emt 0:00:00]} exd4 {[%emt 0:06:40]} 8. Nxd4 {[%emt 0:00:00]} Ne5 {[%emt 0:01:37]} 9. b3 {[%emt 0:00:00]} d6 {[%emt 0:01:44]} 10. Bb2 {[%emt 0:01:26]} c6 {[%emt 0:01:47]} 11. h3 {[%emt 0:02:10]} Re8 {[%emt 0:01:36]} 12. e4 {[%emt 0:01:21]} Qb6 {[%emt 0:03:20]} 13. Na4 {[%emt 0:05:54]} Qc7 {[%emt 0:00:42]} 14. f4 {[%emt 0:01:30]} Ned7 {[%emt 0:01:00]} 15. Re1 {[%emt 0:02:55]} Nh5 {[%emt 0:07:26]} 16. Kh2 {[%emt 0:01:27]} Nc5 {[%emt 0:01:56]} 17. Nc3 {[%emt 0:04:22]} Ne6 {[%emt 0:03:36]} 18. Nde2 {[%emt 0:02:42]} Nc5 {[%emt 0:02:13]} 19. Qd2 {[%emt 0:02:25]} Nf6 {[%emt 0:04:47]} 20. Nd4 {[%emt 0:03:01]} Ne6 {[%emt 0:00:57]} 21. Nf3 {[%emt 0:02:12]} Nc5 {[%emt 0:04:47]} 22. e5 {[%emt 0:03:48]} dxe5 {[%emt 0:01:00]} 23. Nxe5 {[%emt 0:01:13]} Bf5 {[%emt 0:02:18]} 24. Rad1 {[%emt 0:09:26]} Rad8 {[%emt 0:01:11]} 25. Qf2 {[%emt 0:02:32]} Rxd1 {[%emt 0:09:07]} 26. Rxd1 {[%emt 0:03:10]} Qb6 {[%emt 0:09:21]} 27. g4 {[%emt 0:14:46]} Be6 {[%emt 0:05:12]} 28. g5 {[%emt 0:03:09]} Nfd7 {[%emt 0:01:46]} 29. Ng4 {[%emt 0:02:32]} f5 {[%emt 0:05:39]} 30. Ne3 {[%emt 0:02:52]} Rd8 {[%emt 0:02:15]} 31. Qd2 {[%emt 0:02:41]} Bf7 {[%emt 0:03:00]} 32. Bf3 {[%emt 0:04:09]} Ne6 {[%emt 0:00:35]} 33. Ncd5 {[%emt 0:04:53]} cxd5 {[%emt 0:03:08]} 34. Nxd5 {[%emt 0:00:07]} Qc5 {[%emt 0:00:16]} 35. Bxg7 {[%emt 0:00:48]} Nxg7 {[%emt 0:04:04]} 36. Nf6+ {[%emt 0:01:23]} Nxf6 {[%emt 0:00:08]} 37. Qxd8+ {[%emt 0:00:21]} Nfe8 {[%emt 0:00:02]} 38. Kg3 {[%emt 0:01:58]} Qe3 {[%emt 0:00:58]} 39. Qd2 {[%emt 0:01:03]} Nh5+ {[%emt 0:00:37]} 40. Kg2 {[%emt 0:00:51]} Nxf4+ {[%emt 0:00:17]} 41. Kg3 {[%emt 0:00:29]} Nh5+ {[%emt 0:01:06]} 42. Kg2 {[%emt 0:00:10]} Nf4+ {[%emt 0:01:58]} 1/2-1/2

[Event "2nd Cambridge Open 2024"]
[Site "Cambridge"]
[Date "2024.02.21"]
[Round "4.38"]
[White "Ismail, Mohammed Aayan"]
[Black "De Coverly, Roger D"]
[Result "1-0"]
[ECO "E60"]
[WhiteElo "2115"]
[BlackElo "1893"]
[Annotator "RC"]
[PlyCount "89"]
[EventDate "2024.02.18"]
[EventType "swiss"]
[EventCountry "ENG"]
[SourceTitle "playchess.com"]
[Source "ChessBase"]
[SourceQuality "1"]
[TimeControl "5400+30"]

1. c4 {[%emt 0:01:20]} Nf6 {[%emt 0:01:59]} 2. Nf3 {[%emt 0:00:34]} g6 {[%emt 0:00:12]} 3. b3 {[%emt 0:00:23]} Bg7 {[%emt 0:00:16]} 4. Bb2 {[%emt 0:00:05]} d6 {[%emt 0:00:39]} 5. d4 {[%emt 0:00:14]} O-O {[%emt 0:01:04]} 6. e3 {[%emt 0:01:17]} Nbd7 {[%emt 0:02:25]} 7. Be2 {[%emt 0:00:18]} e5 {[%emt 0:02:39]} 8. dxe5 {[%emt 0:00:39]} Ng4 {[%emt 0:00:22]} 9. O-O {[%emt 0:01:21]} Ngxe5 {[%emt 0:01:11]} 10. Nc3 {[%emt 0:01:11]} Nxf3+ {[%emt 0:02:16]} 11. Bxf3 {[%emt 0:00:23]} Ne5 {[%emt 0:01:09]} 12. Be2 {[%emt 0:00:32]} Bd7 {[%emt 0:04:41]} 13. Qd2 {[%emt 0:07:15]} Bc6 {[%emt 0:02:54]} 14. Nd5 {[%emt 0:02:01]} Bxd5 {[%emt 0:02:41]} 15. cxd5 {[%emt 0:02:08]} f5 {[%emt 0:03:41]} 16. Rfc1 {[%emt 0:04:29]} Rf7 {[%emt 0:02:26]} 17. Rc2 {[%emt 0:06:46]} Nd7 {[%emt 0:10:31]} 18. Bxg7 {[%emt 0:01:44]} Rxg7 {[%emt 0:00:20]} 19. Rac1 {[%emt 0:05:46]} Nc5 {[%emt 0:03:06]} 20. b4 {[%emt 0:01:35]} Ne4 {[%emt 0:02:30]} 21. Qd4 {[%emt 0:00:11]} a5 {[%emt 0:02:45]} 22. a3 {[%emt 0:05:13]} b6 {[%emt 0:06:36]} 23. f3 {[%emt 0:04:20]} Nf6 {[%emt 0:01:44]} 24. e4 {[%emt 0:00:21]} fxe4 {[%emt 0:04:08]} 25. fxe4 {[%emt 0:00:05]} axb4 {[%emt 0:01:48]} 26. axb4 {[%emt 0:00:22]} Ra7 {[%emt 0:01:19]} 27. Rf1 {[%emt 0:04:39]} Nd7 {[%emt 0:02:17]} 28. Bg4 {[%emt 0:01:47]} Ne5 {[%emt 0:00:38]} 29. Be6+ {[%emt 0:00:03]} Kh8 {[%emt 0:00:29]} 30. Rcf2 {[%emt 0:04:07]} Ra8 {[%emt 0:01:15]} 31. Qe3 {[%emt 0:05:45]} Qe7 {[%emt 0:04:07]} 32. h3 {[%emt 0:02:29]} c5 {[%emt 0:01:25]} 33. bxc5 {[%emt 0:00:41]} bxc5 {[%emt 0:00:13]} 34. Qf4 {[%emt 0:04:25]} Rgg8 {[%emt 0:05:31]} 35. Bxg8 {[%emt 0:01:21]} Kxg8 {[%emt 0:01:31]} 36. Qh6 {[%emt 0:03:02]} Qg7 {[%emt 0:00:55]} 37. Qh4 {[%emt 0:00:44]} g5 {[%emt 0:05:00]} 38. Qg3 {[%emt 0:02:58]} h6 {[%emt 0:03:59]} 39. Rf6 {[%emt 0:02:00]} Rd8 {[%emt 0:00:42]} 40. h4 {[%emt 0:02:05]} g4 {[%emt 0:00:39]} 41. Re6 {[%emt 0:08:46]} c4 {[%emt 0:02:51]} 42. Rff6 {[%emt 0:05:40]} Qa7+ {[%emt 0:03:10]} 43. Kh2 {[%emt 0:01:14]} Qa2 {[%emt 0:00:47]} 44. Rxe5 {[%emt 0:00:19]} dxe5 {[%emt 0:00:42]} 45. Qxg4+ {[%emt 0:00:03]} 1-0

[Event "2nd Cambridge Open 2024"]
[Site "Cambridge"]
[Date "2024.02.21"]
[Round "4.39"]
[White "Golubovic, Erik"]
[Black "Gardiner, Eric D"]
[Result "1/2-1/2"]
[ECO "E04"]
[WhiteElo "2025"]
[BlackElo "1837"]
[Annotator "NA COMBH"]
[PlyCount "115"]
[EventDate "2024.02.18"]
[EventType "swiss"]
[EventCountry "ENG"]
[SourceTitle "playchess.com"]
[Source "ChessBase"]
[SourceQuality "1"]
[TimeControl "5400+30"]

1. d4 {[%emt 0:00:03]} d5 {[%emt 0:00:09]} 2. Nf3 {[%emt 0:00:18]} Nf6 {[%emt 0:00:59]} 3. c4 {[%emt 0:00:16]} e6 {[%emt 0:00:11]} 4. g3 {[%emt 0:00:08]} dxc4 {[%emt 0:00:17]} 5. Bg2 {[%emt 0:00:09]} c5 {[%emt 0:00:20]} 6. O-O {[%emt 0:00:12]} Nc6 {[%emt 0:00:19]} 7. Ne5 {[%emt 0:00:38]} Bd7 {[%emt 0:01:55]} 8. Na3 {[%emt 0:00:12] 8.Nxc4 deserves study.} cxd4 {[%emt 0:01:08]} 9. Naxc4 {[%emt 0:00:12]} Be7 {[%emt 0:01:19]} 10. Bf4 {[%emt 0:09:08] E04: Open Catalan: 5 Nf3.} Rc8 {[%emt 0:05:03]} 11. Nxd7 {[%emt 0:08:56]} Qxd7 {[%emt 0:01:07]} 12. Ne5 {[%emt 0:00:29]} Nxe5 {[%emt 0:04:07]} 13. Bxe5 {[%emt 0:00:03]} Bc5 {[%emt 0:04:19]} 14. b4 {[%emt 0:03:35]} Bb6 {[%emt 0:01:58]} 15. a4 {[%emt 0:01:18]} a6 {[%emt 0:01:01]} 16. Ra3 $146 {[%emt 0:05:58]} ({Predecessor:} 16. b5 axb5 17. Rb1 Bc5 18. Rxb5 b6 19. Bxf6 gxf6 20. Qd3 O-O 21. Rc1 Qd6 22. Rc4 Rc7 23. a5 {½-½ Schalkwijk,P (1513)-Bokros,J (1695) LSS RD-2009-0-00022}) 16... O-O {[%emt 0:03:15]} 17. Rd3 {[%emt 0:00:45]} Rfd8 {[%emt 0:14:18]} 18. Bxf6 {[%emt 0:14:07]} gxf6 {[%emt 0:00:09]} 19. e3 $11 {[%emt 0:00:15]} Rc3 {[%emt 0:14:22]} 20. exd4 {[%emt 0:05:58]} Rxd3 {[%emt 0:01:14]} 21. Qxd3 {[%emt 0:00:05]} Qxd4 {[%emt 0:04:25]} 22. Qb3 {[%emt 0:06:08]} Rd7 {[%emt 0:01:16]} 23. h4 {[%emt 0:02:25]} Qd3 {[%emt 0:06:00]} 24. Qxd3 {[%emt 0:04:53]} Rxd3 {[%emt 0:00:06]} 25. a5 {[%emt 0:02:24]} Ba7 {[%emt 0:00:40]} 26. Bxb7 {[%emt 0:00:28]} Rxg3+ {[%emt 0:00:16]} 27. Kh2 {[%emt 0:00:08]} Rb3 {[%emt 0:02:41]} 28. Bxa6 {[%emt 0:01:20]} Rxb4 {[%emt 0:00:11]} 29. Bc8 {[%emt 0:01:45]} Rxh4+ {[%emt 0:02:07]} 30. Kg3 {[%emt 0:00:06]} Ra4 {[%emt 0:01:10]} 31. a6 {[%emt 0:00:06]} Kg7 {[%emt 0:02:46]} 32. Rd1 {[%emt 0:04:55]} f5 {[%emt 0:02:33]} 33. Rd7 {[%emt 0:01:13]} Bc5 {[%emt 0:02:13]} 34. Rb7 {[%emt 0:08:51]} Kg6 {[%emt 0:03:08]} 35. Bd7 {[%emt 0:03:52]} Rxa6 {[%emt 0:01:37]} 36. Be8 {[%emt 0:00:16]} Bd6+ {[%emt 0:02:01]} 37. Kg2 {[%emt 0:01:11]} h6 {[%emt 0:04:08]} 38. Bxf7+ {[%emt 0:05:03]} Kf6 {[%emt 0:00:22]} 39. Be8 {[%emt 0:00:43]} Ra8 {[%emt 0:01:11]} 40. Bh5 {[%emt 0:02:01]} Rg8+ {[%emt 0:00:51]} 41. Kf3 {[%emt 0:04:11]} Rh8 {[%emt 0:02:59]} 42. Rd7 {[%emt 0:01:21]} Be7 {[%emt 0:01:22]} 43. Ke2 {[%emt 0:00:51]} e5 {[%emt 0:00:37]} 44. Rb7 {[%emt 0:00:36]} e4 {[%emt 0:01:16]} 45. f3 {[%emt 0:01:14]} exf3+ {[%emt 0:02:38]} 46. Kxf3 {[%emt 0:00:35]} Bd6 {[%emt 0:00:31]} 47. Rb6 {[%emt 0:00:34]} Rd8 {[%emt 0:00:45]} 48. Ra6 {[%emt 0:00:44]} Kg5 {[%emt 0:00:14]} 49. Bf7 {[%emt 0:00:11]} h5 {[%emt 0:00:36]} 50. Ra5 {[%emt 0:01:14]} Bb4 {[%emt 0:03:31]} 51. Rb5 {[%emt 0:00:19]} Rd4 {[%emt 0:00:33]} 52. Be6 {[%emt 0:01:02]} Rf4+ {[%emt 0:00:21]} 53. Kg2 {[%emt 0:00:08]} Rg4+ {[%emt 0:00:57]} 54. Kf3 {[%emt 0:00:07]} Rf4+ {[%emt 0:00:18]} 55. Kg2 {[%emt 0:00:05]} Be1 {[%emt 0:01:01]} 56. Rxf5+ {[%emt 0:00:10]} Rxf5 {[%emt 0:00:04]} 57. Bxf5 {[%emt 0:00:07]} Kxf5 {[%emt 0:00:06]} 58. Kh1 {[%emt 0:00:07]} 1/2-1/2

[Event "2nd Cambridge Open 2024"]
[Site "Cambridge"]
[Date "2024.02.21"]
[Round "4.40"]
[White "Woods, Yannick"]
[Black "Blauhut, Holger"]
[Result "1/2-1/2"]
[ECO "A14"]
[WhiteElo "1856"]
[BlackElo "2016"]
[Annotator "NA RC"]
[PlyCount "91"]
[EventDate "2024.02.18"]
[EventType "swiss"]
[EventCountry "ENG"]
[SourceTitle "playchess.com"]
[Source "ChessBase"]
[SourceQuality "1"]
[TimeControl "5400+30"]

1. c4 {[%emt 0:00:21]} e6 {[%emt 0:00:08]} 2. g3 {[%emt 0:00:07]} d5 {[%emt 0:00:13]} 3. Bg2 {[%emt 0:00:05]} Nf6 {[%emt 0:00:22]} 4. Nf3 {[%emt 0:00:09]} Be7 {[%emt 0:00:07]} 5. O-O {[%emt 0:00:07]} O-O {[%emt 0:00:05]} 6. b3 {[%emt 0:00:05]} c5 {[%emt 0:00:52]} 7. cxd5 {[%emt 0:00:09]} Nxd5 {[%emt 0:01:34]} 8. Bb2 {[%emt 0:01:39]} Nc6 {[%emt 0:05:34]} 9. Na3 {[%emt 0:07:43]} b6 {[%emt 0:02:57]} 10. Nc4 {[%emt 0:05:26]} Bb7 {[%emt 0:01:17]} 11. Qc1 {[%emt 0:12:22]} Rc8 {[%emt 0:01:42]} 12. Ne3 {[%emt 0:14:42]} Nd4 {[%emt 0:09:39]} 13. Qd1 {[%emt 0:03:26]} Bf6 {[%emt 0:08:59]} 14. Nxd4 {[%emt 0:05:24]} Bxd4 {[%emt 0:00:40]} 15. Bxd4 {[%emt 0:03:14]} cxd4 $15 {[%emt 0:00:12]} 16. Nxd5 {[%emt 0:06:49]} Bxd5 {[%emt 0:01:21]} 17. e4 {[%emt 0:05:27]} Bb7 {[%emt 0:03:51]} 18. d3 {[%emt 0:01:10]} Rc3 {[%emt 0:04:01]} 19. Qe2 {[%emt 0:04:31]} Qc7 {[%emt 0:07:26]} 20. Rfd1 {[%emt 0:03:54]} Rc8 {[%emt 0:01:45]} 21. Rd2 {[%emt 0:04:17]} Qe7 {[%emt 0:08:30]} 22. f4 {[%emt 0:04:00]} Rc1+ {[%emt 0:01:29]} 23. Rxc1 {[%emt 0:00:22]} Rxc1+ {[%emt 0:00:06]} 24. Rd1 {[%emt 0:02:29]} Rc3 {[%emt 0:00:43]} 25. e5 {[%emt 0:03:52]} g6 {[%emt 0:07:37]} 26. Qf2 {[%emt 0:01:01]} Bxg2 {[%emt 0:00:22]} 27. Kxg2 {[%emt 0:02:47]} Qb7+ {[%emt 0:00:59]} 28. Kh3 {[%emt 0:00:42]} Qd5 {[%emt 0:00:18]} 29. Rd2 {[%emt 0:00:06]} Kg7 {[%emt 0:05:31]} 30. Qg2 {[%emt 0:02:17]} Qb5 {[%emt 0:04:43]} 31. Qe2 {[%emt 0:01:31]} Qc5 {[%emt 0:04:01]} 32. Qe4 {[%emt 0:02:36]} Rc1 {[%emt 0:03:21]} 33. g4 {[%emt 0:02:00]} Rg1 {[%emt 0:03:33]} 34. Rg2 {[%emt 0:01:17]} Rxg2 {[%emt 0:01:42]} 35. Qxg2 {[%emt 0:00:54]} Qc1 {[%emt 0:00:43]} 36. Qf2 {[%emt 0:00:57]} Qc5 {[%emt 0:01:51]} 37. Qh4 {[%emt 0:00:20]} Qd5 {[%emt 0:02:00]} 38. Kg3 {[%emt 0:00:29]} h6 {[%emt 0:00:56]} 39. Qf6+ {[%emt 0:00:18]} Kg8 {[%emt 0:00:06]} 40. Qh4 {[%emt 0:00:49]} Qd7 {[%emt 0:05:33]} 41. Qxh6 {[%emt 0:00:24]} Qb5 {[%emt 0:00:06]} 42. Kh4 {[%emt 0:00:25]} Qb4 {[%emt 0:01:34]} 43. Kh3 {[%emt 0:00:38]} Qd2 {[%emt 0:01:05]} 44. Kh4 {[%emt 0:00:26]} Qb4 {[%emt 0:01:57]} 45. Kh3 {[%emt 0:00:16]} Qd2 {[%emt 0:00:43]} 46. Kh4 {[%emt 0:00:22]} 1/2-1/2

[Event "2nd Cambridge Open 2024"]
[Site "Cambridge"]
[Date "2024.02.21"]
[Round "4.41"]
[White "Homer, Stephen J"]
[Black "Rida, Ruqayyah"]
[Result "1/2-1/2"]
[ECO "C78"]
[WhiteElo "2045"]
[BlackElo "1743"]
[Annotator "NA RC"]
[PlyCount "71"]
[EventDate "2024.02.18"]
[EventType "swiss"]
[EventCountry "ENG"]
[SourceTitle "playchess.com"]
[Source "ChessBase"]
[SourceQuality "1"]
[TimeControl "5400+30"]

1. e4 {[%emt 0:00:02]} e5 {[%emt 0:00:13]} 2. Nf3 {[%emt 0:00:06]} Nc6 {[%emt 0:00:08]} 3. Bb5 {[%emt 0:00:02]} a6 {[%emt 0:00:08]} 4. Ba4 {[%emt 0:00:02]} Nf6 {[%emt 0:00:09]} 5. d3 {[%emt 0:00:03]} b5 {[%emt 0:00:13]} 6. Bb3 {[%emt 0:00:01]} Bc5 {[%emt 0:00:26]} 7. c3 {[%emt 0:00:11]} d6 {[%emt 0:00:11]} 8. O-O {[%emt 0:00:15]} O-O {[%emt 0:00:23]} 9. h3 {[%emt 0:01:00]} h6 {[%emt 0:00:06]} 10. Be3 {[%emt 0:00:06]} Bxe3 {[%emt 0:05:30]} 11. fxe3 {[%emt 0:00:02]} d5 {[%emt 0:00:43]} 12. exd5 {[%emt 0:00:49]} Nxd5 {[%emt 0:00:09]} 13. Qe2 {[%emt 0:00:54]} Be6 {[%emt 0:03:48]} 14. Nbd2 {[%emt 0:00:34]} Qe7 {[%emt 0:04:58]} 15. d4 {[%emt 0:03:20]} Rad8 {[%emt 0:11:42]} 16. a4 {[%emt 0:07:36]} exd4 {[%emt 0:22:35]} 17. Nxd4 {[%emt 0:13:53]} Nxd4 {[%emt 0:02:44]} 18. exd4 {[%emt 0:00:11]} Qg5 $11 {[%emt 0:03:28]} 19. Kh1 {[%emt 0:06:50]} Nf4 {[%emt 0:07:48]} 20. Qf3 {[%emt 0:11:44]} Nh5 {[%emt 0:07:31]} 21. Ne4 {[%emt 0:08:10]} Qg6 {[%emt 0:05:12]} 22. Bxe6 {[%emt 0:15:51]} fxe6 {[%emt 0:02:46]} 23. Qg4 {[%emt 0:01:40]} Qxe4 {[%emt 0:06:18]} 24. Qxh5 {[%emt 0:00:21]} Qd5 {[%emt 0:08:18]} 25. Qxd5 {[%emt 0:01:28]} exd5 {[%emt 0:00:07]} 26. Rxf8+ {[%emt 0:00:25]} Kxf8 {[%emt 0:02:12]} 27. axb5 {[%emt 0:03:41]} axb5 {[%emt 0:00:03]} 28. Ra7 {[%emt 0:01:57]} c6 {[%emt 0:00:45]} 29. h4 {[%emt 0:01:21]} h5 {[%emt 0:01:11]} 30. Kh2 {[%emt 0:01:47]} Kg8 {[%emt 0:00:58]} 31. Re7 {[%emt 0:05:42]} Rd6 {[%emt 0:01:27]} 32. Re5 {[%emt 0:00:47]} Rh6 {[%emt 0:02:54]} 33. Kg3 {[%emt 0:08:39]} Kf7 {[%emt 0:00:40]} 34. Kf4 {[%emt 0:00:42]} Rf6+ {[%emt 0:00:36]} 35. Kg3 {[%emt 0:03:17]} g6 {[%emt 0:00:19]} 36. Re3 {[%emt 0:01:50]} 1/2-1/2

[Event "2nd Cambridge Open 2024"]
[Site "Cambridge"]
[Date "2024.02.21"]
[Round "4.42"]
[White "Pert, Nina"]
[Black "Spanton, Tim R"]
[Result "1-0"]
[ECO "B34"]
[WhiteElo "1968"]
[BlackElo "1736"]
[Annotator "NA RC"]
[PlyCount "65"]
[EventDate "2024.02.18"]
[EventType "swiss"]
[EventCountry "ENG"]
[SourceTitle "playchess.com"]
[Source "ChessBase"]
[SourceQuality "1"]
[TimeControl "5400+30"]

1. e4 {[%emt 0:00:04]} c5 {[%emt 0:00:04]} 2. Nf3 {[%emt 0:00:04]} g6 {[%emt 0:00:03]} 3. d4 {[%emt 0:00:18]} cxd4 {[%emt 0:00:05]} 4. Nxd4 {[%emt 0:00:17]} Nc6 {[%emt 0:00:13]} 5. Nxc6 {[%emt 0:01:38]} bxc6 {[%emt 0:00:22]} 6. Qd4 {[%emt 0:01:53]} Nf6 {[%emt 0:00:40]} 7. e5 {[%emt 0:02:41]} Nd5 {[%emt 0:00:36]} 8. Bc4 {[%emt 0:05:09]} Qb6 {[%emt 0:01:45]} 9. Qe4 {[%emt 0:02:42]} Bg7 {[%emt 0:01:48]} 10. O-O {[%emt 0:04:16]} O-O {[%emt 0:00:58]} 11. Nd2 {[%emt 0:05:20]} Ba6 {[%emt 0:01:46]} 12. Re1 {[%emt 0:04:32]} Nc7 {[%emt 0:02:39]} 13. Bxa6 {[%emt 0:01:31]} Qxa6 {[%emt 1:26:01]} 14. Nf3 {[%emt 0:00:47]} d5 {[%emt 0:00:00]} 15. Qh4 {[%emt 0:01:19]} Rae8 {[%emt 0:00:00]} 16. a4 {[%emt 0:05:33]} Ne6 {[%emt 0:00:00]} 17. Ra3 {[%emt 0:02:36]} f6 {[%emt 0:00:00]} 18. Qh3 {[%emt 0:05:32]} Qc8 {[%emt 0:00:00]} 19. Bh6 {[%emt 0:07:26]} Nc5 {[%emt 0:00:00]} 20. Qh4 {[%emt 0:02:50]} Ne4 {[%emt 0:00:00]} 21. Bxg7 {[%emt 0:04:58]} Kxg7 {[%emt 0:00:00]} 22. e6 {[%emt 0:02:15]} g5 {[%emt 0:00:00]} 23. Qh3 {[%emt 0:02:06]} c5 {[%emt 0:00:00]} 24. Qf5 {[%emt 0:03:06]} Rd8 {[%emt 0:00:00]} 25. Rd3 {[%emt 0:03:59]} Qb7 {[%emt 0:00:00]} 26. Rxe4 {[%emt 0:06:51]} dxe4 {[%emt 0:00:00]} 27. Nxg5 {[%emt 0:00:09]} fxg5 {[%emt 0:00:00]} 28. Qxg5+ {[%emt 0:00:05]} Kh8 {[%emt 0:00:00]} 29. Qe5+ {[%emt 0:00:06]} Rf6 {[%emt 0:00:00]} 30. Rxd8+ {[%emt 0:00:04]} Kg7 {[%emt 0:00:00]} 31. Rd7 {[%emt 0:00:23]} Qb6 {[%emt 0:00:00]} 32. Rxe7+ {[%emt 0:00:23]} Kg6 {[%emt 0:00:00]} 33. Qxe4+ {[%emt 0:00:28]} 1-0